bitfinex-derivatives/quotes_SOLF0:USTF0_20250323
["timestamp","ask_amount","ask_price","bid_price","bid_amount"]
[1742725931541,1.83e-06,132.15,132.14,22.61586691]
[1742725932743,1.83e-06,132.15,132.14,40.67866691]
[1742725933939,1.83e-06,132.15,132.14,42.049]
[1742725934641,1.83e-06,132.15,132.14,34.489]
[1742725935041,1.83e-06,132.15,132.14,42.049]
[1742725940946,1.83e-06,132.15,132.14,291.669]
[1742725943152,1.83e-06,132.15,132.14,314.389]
[1742725943348,1.83e-06,132.15,132.14,311.92866684]
[1742725943652,1.83e-06,132.15,132.14,293.18254623]
[1742725946454,1.83e-06,132.15,132.14,309.69811433]
[1742725946655,1.83e-06,132.15,132.14,302.11811433]
[1742725946854,1.83e-06,132.15,132.14,275.21811433]
[1742725947054,26.9,132.25,132.18,7.5663]
[1742725947458,26.9,132.25,132.17,26.9]
[1742725947648,7.5643,132.23,132.19,7.5661]
[1742725947953,4.1919,132.22,132.19,7.5661]
[1742725948155,11.80563974,132.22,132.18,7.5666]
[1742725948356,8.1257,132.21,132.18,7.5666]
[1742725949556,8.1257,132.21,132.17,26.9]
[1742725949850,257.7057,132.21,132.14,26.9]
[1742725950056,7.566,132.2,132.17,7.5673]
[1742725950250,0.05182143,132.19,132.14,26.9]
[1742725950951,0.05182143,132.19,132.18,7.5668]
[1742725951452,0.05182143,132.19,132.14,26.9]
[1742725951654,0.05182143,132.19,132.16,7.5673]
[1742725953257,0.05182143,132.19,132.17,7.5672]
[1742725955860,26.95182143,132.19,132.09,261.25578184]
[1742725956159,26.9,132.19,132.1,26.9]
[1742725956453,0.05200843,132.15,132.09,42.61114854]
[1742725956654,276.52,132.14,132.09,34.91436296]
[1742725956859,7.8553,132.13,132.09,34.91436296]
[1742725957254,0.05427127,132.12,132.09,34.91436296]
[1742725958558,0.05427127,132.12,132.08,7.5724]
[1742725960262,0.05427127,132.12,132.04,26.96]
[1742725960465,7.8553,132.13,132.05,26.94]
[1742725960766,0.05718052,132.09,132.08,7.5725]
[1742725960963,7.8553,132.13,132.08,26.94]
[1742725961262,0.05464126,132.1,132.08,26.94]
[1742725961466,0.05464126,132.1,132.09,7.5719]
[1742725980968,0.05464126,132.1,132.08,7.5722]
[1742725981569,0.05464126,132.1,132.09,7.5719]
[1742725985376,0.05464126,132.1,132.08,7.5724]
[1742725985572,3.97074126,132.1,132.08,7.5724]
[1742725985771,3.97074126,132.1,132.02,0.23401005]
[1742725985974,11.4877,132.1,132.03,26.92]
[1742725986176,0.05540963,132.07,132.03,26.92]
[1742725986475,0.05540963,132.07,132.06,7.5736]
[1742725990877,9.63e-06,132.07,132.06,34.4936]
[1742725991980,9.63e-06,132.07,132.06,7.5736]
[1742726042230,9.63e-06,132.07,132.06,34.4936]
[1742726042924,9.63e-06,132.07,132.05,0.0546033]
[1742726043124,9.63e-06,132.07,132.05,26.9746033]
[1742726044028,9.63e-06,132.07,132.06,7.5736]
[1742726044626,9.63e-06,132.07,132.05,0.0546033]
[1742726045028,8.38770963,132.07,132.05,0.0546033]
[1742726046032,7.5737,132.06,132.03,7.5752]
[1742726046626,15.96100963,132.07,132.03,7.5752]
[1742726047631,15.96100963,132.07,132.04,7.5748]
[1742726047832,15.96100963,132.07,132.02,0.23401005]
[1742726048233,12.24680963,132.07,132.02,0.23401005]
[1742726048931,12.24680963,132.07,132.04,7.5747]
[1742726049335,19.81990963,132.07,132.04,7.5747]
[1742726049537,12.24680963,132.07,132.05,7.5741]
[1742726050336,12.24680963,132.07,132.06,7.5736]
[1742726052734,8.38770963,132.07,132.06,7.5736]
[1742726052939,9.63e-06,132.07,132.06,7.5736]
[1742726117005,9.63e-06,132.07,132.06,34.4936]
[1742726122607,9.63e-06,132.07,132.06,42.0736]
[1742726123205,9.63e-06,132.07,132.06,46.0842]
[1742726124510,9.63e-06,132.07,132.06,93.63110239]
[1742726128708,9.63e-06,132.07,132.06,86.05110239]
[1742726128910,9.63e-06,132.07,132.06,55.12050239]
[1742726129110,9.63e-06,132.07,132.06,82.02050239]
[1742726129710,9.63e-06,132.07,132.06,55.12050239]
[1742726130108,9.63e-06,132.07,132.06,82.02050239]
[1742726130605,9.63e-06,132.07,132.06,34.4736]
[1742726138015,9.63e-06,132.07,132.06,7.5736]
[1742726138217,9.63e-06,132.07,132.06,34.4736]
[1742726140012,9.63e-06,132.07,132.05,7.574]
[1742726140410,9.63e-06,132.07,132.04,26.9]
[1742726140616,9.63e-06,132.07,132.06,7.5736]
[1742726155228,9.63e-06,132.07,132.06,34.4736]
[1742726159931,9.63e-06,132.07,132.06,7.5736]
[1742726160131,9.63e-06,132.07,132.02,0.23401005]
[1742726160336,9.63e-06,132.07,132.03,26.9]
[1742726160631,9.63e-06,132.07,132.03,34.475]
[1742726161733,9.63e-06,132.07,132.04,7.5747]
[1742726163333,9.63e-06,132.07,132.05,7.5741]
[1742726163534,9.63e-06,132.07,132.03,26.9]
[1742726163940,9.63e-06,132.07,132.05,7.5742]
[1742726164341,9.63e-06,132.07,132.03,26.9]
[1742726164541,9.63e-06,132.07,132.04,7.5744]
[1742726165938,7.57310963,132.07,132.03,7.5751]
[1742726166139,19.89480963,132.07,132.03,7.5751]
[1742726167241,19.89480963,132.07,132.04,7.5747]
[1742726169741,26.9,132.06,132.04,7.5747]
[1742726170848,34.4736,132.06,132.03,7.5751]
[1742726172042,34.4736,132.06,132.04,7.5747]
[1742726174345,26.9,132.06,132.03,7.5751]
[1742726174548,249.88,132.05,132.02,0.23401005]
[1742726176447,249.88,132.05,132.02,7.80981005]
[1742726176647,249.88,132.05,132.02,0.23401005]
[1742726177043,249.88,132.05,132.02,27.15401005]
[1742726177549,249.88,132.05,132.02,34.72981005]
[1742726178744,249.88,132.05,132.03,7.5753]
[1742726179954,249.88,132.05,132.04,7.5748]
[1742726180455,249.88,132.05,132.03,7.5752]
[1742726185450,249.88,132.05,132.02,0.23401005]
[1742726186757,7.5751,132.04,132.02,0.23401005]
[1742726187157,7.627705,132.04,132.02,0.23401005]
[1742726187358,0.052605,132.04,132.02,0.23401005]
[1742726190856,0.052605,132.04,132.02,27.15401005]
[1742726191258,0.052605,132.04,132.03,7.5753]
[1742726192264,0.052605,132.04,132.03,34.4953]
[1742726196059,5e-06,132.04,132.03,34.4953]
[1742726196461,5e-06,132.04,132.03,38.4433]
[1742726199361,5e-06,132.04,132.03,46.5833]
[1742726206165,5e-06,132.04,132.03,42.3787]
[1742726206374,5e-06,132.04,132.03,11.5233]
[1742726206564,5e-06,132.04,132.03,38.4233]
[1742726207471,5e-06,132.04,132.03,34.4753]
[1742726207969,5e-06,132.04,132.03,7.5753]
[1742726208171,5e-06,132.04,132.03,34.4753]
[1742726208967,5e-06,132.04,132.03,26.9]
[1742726210368,5e-06,132.04,132.02,0.28507172]
[1742726210672,5e-06,132.04,132.03,7.5753]
[1742726211875,5e-06,132.04,132.02,7.86087172]
[1742726212073,5e-06,132.04,132.02,27.18507172]
[1742726212276,5e-06,132.04,132.02,0.28507172]
[1742726212572,7.574805,132.04,132.02,0.28507172]
[1742726213069,5e-06,132.04,132.02,0.28507172]
[1742726214375,5e-06,132.04,132.02,7.86097172]
[1742726214673,5e-06,132.04,132.02,0.28507172]
[1742726214869,5e-06,132.04,132.03,7.5753]
[1742726223078,5e-06,132.04,132.03,15.1553]
[1742726226786,5e-06,132.04,132.03,7.5753]
[1742726228089,5e-06,132.04,132.03,55.10527416]
[1742726228982,5e-06,132.04,132.03,62.68527416]
[1742726230591,5e-06,132.04,132.03,55.10527416]
[1742726233293,3.8354,132.11,132.08,7.5722]
[1742726233893,3.8354,132.11,132.09,7.5718]
[1742726234298,3.8354,132.11,132.03,47.52997416]
[1742726234492,3.89332722,132.11,132.09,0.05059542]
[1742726234684,3.8354,132.11,132.08,7.5721]
[1742726234890,3.88581464,132.11,132.09,0.05610271]
[1742726235291,7.9088,132.1,132.09,0.05610271]
[1742726235893,15.4888,132.1,132.02,0.23401005]
[1742726236094,7.5723,132.09,132.05,7.5738]
[1742726236294,26.9,132.09,132.05,7.5738]
[1742726236592,257.3928,132.08,132.04,7.5744]
[1742726236993,0.05719484,132.07,132.03,26.9]
[1742726237394,7.63029484,132.07,132.04,7.5747]
[1742726237594,7.63029484,132.07,132.02,0.23401005]
[1742726237794,0.05719484,132.07,132.02,0.23401005]
[1742726238594,0.05719484,132.07,132.04,7.5744]
[1742726238997,0.05719484,132.07,132.02,0.23401005]
[1742726239197,0.05719484,132.07,132.05,7.5741]
[1742726239795,0.05719484,132.07,132.04,7.5746]
[1742726239996,0.05719484,132.07,132.02,0.23401005]
[1742726240398,0.05719484,132.07,132.04,7.5743]
[1742726240897,0.05719484,132.07,132.02,0.23401005]
[1742726242198,0.05719484,132.07,132.05,7.5738]
[1742726242697,4.21919484,132.07,132.05,7.5738]
[1742726243299,11.79239484,132.07,132.04,7.5745]
[1742726243996,26.9,132.06,132.02,0.23401005]
[1742726244198,26.9,132.06,131.99,26.9]
[1742726244393,8.1618,132.05,131.99,26.9]
[1742726244599,0.05156285,132.04,131.99,26.9]
[1742726245400,0.05156285,132.04,132.02,7.5755]
[1742726246397,0.05156285,132.04,132.03,7.5753]
[1742726252604,0.05156285,132.04,132.03,34.4953]
[1742726253005,6.285e-05,132.04,132.03,34.4953]
[1742726259216,6.285e-05,132.04,132.02,0.04926197]
[1742726260721,6.285e-05,132.04,132.03,7.5753]
[1742726275333,6.285e-05,132.04,132.02,7.62496197]
[1742726277829,7.57486285,132.04,132.02,0.04926197]
[1742726278231,6.285e-05,132.04,132.02,0.04926197]
[1742726278836,6.285e-05,132.04,132.02,7.62486197]
[1742726279135,6.285e-05,132.04,132.02,0.04926197]
[1742726280531,6.285e-05,132.04,132.03,7.5753]
[1742726290844,6.285e-05,132.04,132.03,23.0965]
[1742726291039,6.285e-05,132.04,132.03,26.9881]
[1742726296048,6.285e-05,132.04,132.03,74.52415956]
[1742726296949,6.285e-05,132.04,132.03,136.52415956]
[1742726298651,6.285e-05,132.04,132.03,177.37615104]
[1742726298851,8.3978,132.16,132.03,169.80085104]
[1742726299052,8.3978,132.16,132.03,162.22085104]
[1742726299961,0.05541872,132.11,132.08,0.05307071]
[1742726300257,0.05541872,132.11,132.1,7.5712]
[1742726300451,8.3978,132.16,132.1,34.4712]
[1742726300652,0.05010763,132.12,132.1,34.4712]
[1742726301056,0.05010763,132.12,132.1,34.52393134]
[1742726304055,0.05010763,132.12,132.1,0.05273134]
[1742726304454,11.69510763,132.12,132.1,0.05273134]
[1742726304857,7.5708,132.11,132.1,0.05273134]
[1742726305057,7.5708,132.11,132.07,7.5727]
[1742726306861,7.5708,132.11,132.06,7.5734]
[1742726307258,4.0747,132.12,132.06,7.5734]
[1742726307259,7.62077553,132.1,132.06,7.5734]
[1742726308956,7.5719,132.09,132.05,34.474]
[1742726309151,7.5719,132.09,131.99,15.1547]
[1742726309152,26.94937553,132.1,132.04,26.9]
[1742726309357,26.9,132.1,132.03,26.9]
[1742726309659,7.5731,132.07,132.03,34.4749]
[1742726309861,26.9,132.07,132.03,7.5749]
[1742726310160,7.5742,132.05,132.02,7.5756]
[1742726310459,7.63188047,132.05,132.02,7.5756]
[1742726311162,0.05768047,132.05,132.02,7.5756]
[1742726311362,0.05768047,132.05,132.03,7.5753]
[1742726311663,0.05768047,132.05,132.01,26.9]
[1742726311963,0.05768047,132.05,132.04,7.5748]
[1742726317869,0.05768047,132.05,132.03,7.5751]
[1742726318070,0.05768047,132.05,132.01,26.9]
[1742726318269,0.05768047,132.05,132.04,7.5748]
[1742726327268,0.05768047,132.05,132.04,34.4748]
[1742726329783,0.05768047,132.05,132.04,7.5748]
[1742726333484,0.05768047,132.05,132.03,7.5751]
[1742726334781,4.04598047,132.05,132.04,7.5748]
[1742726335887,4.04598047,132.05,132.03,7.5751]
[1742726346796,4.04598047,132.05,132.04,7.5748]
[1742726347196,0.05768047,132.05,132.04,7.5748]
[1742726361112,8.047e-05,132.05,132.04,7.5748]
[1742726361314,8.047e-05,132.05,132.04,15.6624]
[1742726361715,8.047e-05,132.05,132.04,19.8978]
[1742726371223,8.047e-05,132.05,132.04,34.4548]
[1742726372217,8.047e-05,132.05,132.04,7.5748]
[1742726378525,8.047e-05,132.05,132.04,19.2426]
[1742726378724,8.047e-05,132.05,132.04,269.1226]
[1742726381432,8.047e-05,132.05,132.04,331.1226]
[1742726382926,249.86,132.15,132.14,7.569]
[1742726388635,249.86,132.15,132.13,34.50429875]
[1742726389733,249.86,132.15,132.14,7.569]
[1742726390928,249.86,132.15,132.13,0.05479875]
[1742726391135,284.8556,132.15,132.09,26.88]
[1742726391431,4.1096,132.14,132.1,7.571]
[1742726391735,11.6792,132.14,132.1,7.571]
[1742726391930,4.1096,132.14,132.1,7.571]
[1742726392438,0.05646715,132.13,132.1,7.571]
[1742726394242,0.05646715,132.13,132.11,7.5706]
[1742726394538,0.05646715,132.13,132.08,26.88]
[1742726394739,0.05646715,132.13,132.12,7.5702]
[1742726395434,0.05646715,132.13,132.12,34.4502]
[1742726404751,0.05646715,132.13,132.12,7.5702]
[1742726405051,0.05646715,132.13,132.11,7.5705]
[1742726405654,0.05646715,132.13,132.12,7.5702]
[1742726412761,6.715e-05,132.13,132.12,7.5702]
[1742726433485,6.715e-05,132.13,132.12,11.7043]
[1742726435081,6.715e-05,132.13,132.12,19.2643]
[1742726440090,6.715e-05,132.13,132.12,139.75260897]
[1742726440391,284.1231,132.25,132.21,7.5649]
[1742726441591,0.05509425,132.24,132.22,7.62234834]
[1742726442183,0.05509425,132.24,132.23,7.5639]
[1742726442586,0.05509425,132.24,132.22,0.05794834]
[1742726443591,0.05509425,132.24,132.22,7.62204834]
[1742726445796,0.05509425,132.24,132.23,7.5639]
[1742726446491,0.05509425,132.24,132.22,0.05794834]
[1742726446891,9.425e-05,132.24,132.23,7.5639]
[1742726465505,9.425e-05,132.24,132.23,7.5639]
[1742726471198,9.425e-05,132.24,132.23,34.3839]
[1742726471403,9.425e-05,132.24,132.23,7.5639]
[1742726471603,9.425e-05,132.24,132.23,34.3839]
[1742726471804,9.425e-05,132.24,132.23,7.5639]
[1742726472305,9.425e-05,132.24,132.23,34.3839]
[1742726474008,9.425e-05,132.24,132.23,7.5639]
[1742726476006,24.05568998,132.4,132.22,0.05794834]
[1742726476007,249.48,132.34,132.22,0.05794834]
[1742726476307,276.3,132.36,132.22,8.2873]
[1742726476611,276.3,132.37,132.23,15.1278]
[1742726476805,276.3,132.37,132.24,26.82]
[1742726477108,0.05013165,132.32,132.29,0.05664304]
[1742726477309,0.05013165,132.32,132.3,26.82]
[1742726477505,276.3,132.37,132.3,26.82]
[1742726477708,0.0571956,132.32,132.31,7.5593]
[1742726477909,276.3,132.37,132.3,26.82]
[1742726478111,0.05783542,132.33,132.3,26.87137328]
[1742726478512,0.05783542,132.33,132.32,7.5587]
[1742726485518,3.542e-05,132.33,132.32,7.5587]
[1742726494021,3.542e-05,132.33,132.31,7.5591]
[1742726494423,3.542e-05,132.33,132.3,0.05137328]
[1742726494624,3.542e-05,132.33,132.31,7.5593]
[1742726494825,3.542e-05,132.33,132.3,0.05137328]
[1742726496528,3.542e-05,132.33,132.32,7.5587]
[1742726497628,3.542e-05,132.33,132.32,34.3787]
[1742726503831,3.542e-05,132.33,132.32,7.5587]
[1742726504023,3.542e-05,132.33,132.32,34.3787]
[1742726508736,3.542e-05,132.33,132.32,38.2926]
[1742726510131,3.542e-05,132.33,132.32,45.8526]
[1742726512943,3.542e-05,132.33,132.32,51.97161785]
[1742726513748,3.542e-05,132.33,132.32,44.41161785]
[1742726515039,3.542e-05,132.33,132.32,51.97161785]
[1742726515741,3.542e-05,132.33,132.32,45.8526]
[1742726516136,3.542e-05,132.33,132.32,38.2926]
[1742726516846,3.542e-05,132.33,132.32,45.8526]
[1742726517948,3.542e-05,132.33,132.32,47.3640873]
[1742726519746,3.542e-05,132.33,132.32,48.74612657]
[1742726519943,3.542e-05,132.33,132.32,90.29060277]
[1742726520250,4.0291,132.46,132.45,7.5513]
[1742726520851,30.7434,132.51,132.44,26.8]
[1742726521051,3.9393,132.5,132.44,26.8]
[1742726521452,0.05115311,132.48,132.47,7.5498]
[1742726524251,0.05115311,132.48,132.47,34.3498]
[1742726525358,5.311e-05,132.48,132.47,34.3498]
[1742726527352,5.311e-05,132.48,132.47,34.4298]
[1742726532161,5.311e-05,132.48,132.47,7.5498]
[1742726537865,5.311e-05,132.48,132.46,7.60421304]
[1742726538558,5.311e-05,132.48,132.43,26.92]
[1742726538761,5.311e-05,132.48,132.4,4.0007]
[1742726538962,15.388,132.49,132.41,26.92]
[1742726539364,15.388,132.49,132.45,7.5508]
[1742726539565,7.8389,132.49,132.37,65.74699315]
[1742726539759,0.04988774,132.48,132.37,65.74699315]
[1742726539965,26.92,132.47,132.37,65.74699315]
[1742726540771,7.5523,132.44,132.39,7.5546]
[1742726540969,27.17679385,132.43,132.41,0.04981532]
[1742726541170,27.17679385,132.43,132.39,7.5546]
[1742726541764,27.17679385,132.43,132.4,7.5541]
[1742726542265,0.05679385,132.43,132.41,7.5532]
[1742726542466,0.05679385,132.43,132.4,0.04982224]
[1742726543269,0.05679385,132.43,132.41,7.5532]
[1742726544571,0.05679385,132.43,132.4,7.60382224]
[1742726544775,0.05679385,132.43,132.4,0.04982224]
[1742726544965,0.05679385,132.43,132.41,7.5533]
[1742726545669,0.05679385,132.43,132.42,7.553]
[1742726546771,0.05679385,132.43,132.41,7.5534]
[1742726547070,0.05679385,132.43,132.4,0.04982224]
[1742726547373,0.05679385,132.43,132.42,7.553]
[1742726547566,0.05679385,132.43,132.42,34.673]
[1742726555071,9.385e-05,132.43,132.42,34.673]
[1742726565870,5.0702,132.55,132.42,34.68]
[1742726566177,4.0041,132.55,132.43,11.7734]
[1742726566473,4.0041,132.55,132.52,7.5473]
[1742726567179,0.0565512,132.54,132.52,7.5473]
[1742726570278,27.0965512,132.54,132.52,7.5473]
[1742726570480,8.02658431,132.53,132.52,7.5473]
[1742726571881,8.02658431,132.53,132.51,7.60067545]
[1742726572177,0.48658431,132.53,132.51,7.60067545]
[1742726572478,8.02658431,132.53,132.51,0.05297545]
[1742726573581,15.57368431,132.53,132.51,0.05297545]
[1742726573781,15.57368431,132.53,132.47,27.02]
[1742726573981,8.03368431,132.53,132.47,27.02]
[1742726574280,8.03368431,132.53,132.5,7.5484]
[1742726574483,15.57368431,132.53,132.5,7.5484]
[1742726574778,8.08965583,132.53,132.5,0.053431]
[1742726575282,7.5474,132.52,132.5,0.053431]
[1742726579991,7.5479,132.51,132.5,0.053431]
[1742726580390,42.0679,132.51,132.5,0.053431]
[1742726580590,42.0679,132.51,132.47,7.5499]
[1742726580791,34.5279,132.51,132.47,7.5499]
[1742726581284,283.6279,132.51,132.47,7.5499]
[1742726581485,7.5485,132.5,132.47,7.5499]
[1742726581693,0.05600902,132.5,132.48,0.02693761]
[1742726581896,3.90750902,132.5,132.48,0.02693761]
[1742726584700,3.90750902,132.5,132.48,7.57653761]
[1742726587190,3.90750902,132.5,132.49,7.549]
[1742726587394,0.05600902,132.5,132.49,7.549]
[1742726595807,0.05600902,132.5,132.49,34.449]
[1742726596005,249.1,132.51,132.5,7.5485]
[1742726605912,249.1,132.51,132.48,0.02693761]
[1742726606119,256.64,132.51,132.42,41.11672986]
[1742726606413,4.1376,132.5,132.42,48.66962986]
[1742726606617,7.5512,132.46,132.42,41.11672986]
[1742726606819,34.4712,132.46,132.42,41.11672986]
[1742726607013,34.4712,132.46,132.4,123.82005473]
[1742726607014,26.92,132.46,132.4,41.11672986]
[1742726607212,0.05309008,132.45,132.43,0.04871358]
[1742726607610,0.05309008,132.45,132.44,7.5519]
[1742726608616,0.05309008,132.45,132.43,7.60091358]
[1742726608816,0.05309008,132.45,132.43,0.04871358]
[1742726611019,7.60449008,132.45,132.43,0.04871358]
[1742726611224,249.17309008,132.45,132.43,0.04871358]
[1742726612118,7.5519,132.44,132.43,0.04871358]
[1742726612511,7.56,132.44,132.37,3.9578]
[1742726612715,26.98,132.43,132.37,3.9578]
[1742726613019,26.98,132.43,132.35,35.0718]
[1742726613217,26.98,132.43,132.35,8.0918]
[1742726613421,26.98,132.43,132.35,35.0718]
[1742726613722,0.05726475,132.4,132.35,35.0718]
[1742726614226,0.05726475,132.4,132.38,7.5552]
[1742726614914,0.05726475,132.4,132.39,7.5548]
[1742726617528,0.05726475,132.4,132.38,7.5551]
[1742726617727,0.05726475,132.4,132.35,8.0918]
[1742726617919,0.05726475,132.4,132.36,26.94]
[1742726618124,0.05726475,132.4,132.37,7.5555]
[1742726618629,34.55166475,132.4,132.37,7.5555]
[1742726619429,26.99726475,132.4,132.37,7.5555]
[1742726622122,26.99726475,132.4,132.38,7.5553]
[1742726622333,26.99726475,132.4,132.36,26.94]
[1742726622527,26.99726475,132.4,132.37,7.5556]
[1742726623533,26.99726475,132.4,132.38,7.5553]
[1742726630240,26.99726475,132.4,132.37,7.5557]
[1742726634435,0.05726475,132.4,132.37,27.0]
[1742726635036,0.05726475,132.4,132.39,7.5548]
[1742726635936,0.05726475,132.4,132.35,35.1118]
[1742726637138,0.05726475,132.4,132.39,7.5548]
[1742726637633,0.05726475,132.4,132.35,35.1118]
[1742726638241,27.02,132.43,132.36,0.05009233]
[1742726638539,276.16,132.45,132.43,7.5523]
[1742726639339,276.21656157,132.45,132.43,7.60030097]
[1742726639540,276.21656157,132.45,132.44,7.5519]
[1742726640244,276.21656157,132.45,132.43,0.04800097]
[1742726641740,283.76796157,132.45,132.43,0.04800097]
[1742726642541,276.21656157,132.45,132.43,0.04800097]
[1742726643442,283.76836157,132.45,132.43,0.04800097]
[1742726644142,7.5519,132.44,132.43,0.04800097]
[1742726648044,283.76806157,132.45,132.43,0.04800097]
[1742726649141,276.21656157,132.45,132.43,0.04800097]
[1742726649647,276.21656157,132.45,132.43,7.60030097]
[1742726650747,276.15656157,132.45,132.44,7.5519]
[1742726651046,276.15656157,132.45,132.43,0.04800097]
[1742726652445,276.15656157,132.45,132.43,7.60020097]
[1742726652748,276.15656157,132.45,132.43,0.04800097]
[1742726654344,276.15656157,132.45,132.43,7.60040097]
[1742726656659,276.15656157,132.45,132.44,7.5519]
[1742726657251,249.17656157,132.45,132.44,7.5519]
[1742726663147,249.17656157,132.45,132.43,7.60020097]
[1742726664055,249.17656157,132.45,132.44,7.5519]
[1742726670859,249.17656157,132.45,132.43,7.60020097]
[1742726671057,249.17656157,132.45,132.43,0.04800097]
[1742726671259,256.72806157,132.45,132.43,0.04800097]
[1742726672662,7.5519,132.44,132.43,0.04800097]
[1742726672863,34.3919,132.44,132.43,0.04800097]
[1742726673763,26.84,132.44,132.43,0.04800097]
[1742726674564,26.84,132.44,132.43,7.60050097]
[1742726675064,26.84,132.44,132.43,0.04800097]
[1742726678367,249.17656157,132.45,132.43,0.04800097]
[1742726679464,249.17656157,132.45,132.44,7.5519]
[1742726681869,249.17656157,132.45,132.43,7.60020097]
[1742726682872,249.17656157,132.45,132.43,0.04800097]
[1742726684375,249.17656157,132.45,132.43,7.60040097]
[1742726687477,249.17656157,132.45,132.44,7.5519]
[1742726692082,249.17656157,132.45,132.43,7.60020097]
[1742726694986,249.17656157,132.45,132.44,7.5519]
[1742726696485,249.17656157,132.45,132.43,7.60030097]
[1742726697280,7.5519,132.44,132.43,0.04800097]
[1742726701293,34.3519,132.44,132.43,0.04800097]
[1742726702287,249.17656157,132.45,132.43,0.04800097]
[1742726703988,249.17656157,132.45,132.44,7.5519]
[1742726706902,10.7703089,132.5,132.48,7.5495]
[1742726707091,37.5703089,132.5,132.48,7.5495]
[1742726707491,283.5882,132.51,132.48,7.5495]
[1742726707996,283.5882,132.51,132.49,7.549]
[1742726707997,276.04,132.51,132.49,7.549]
[1742726708196,276.09804854,132.51,132.49,7.549]
[1742726708898,283.64624854,132.51,132.48,0.05728163]
[1742726709195,26.86,132.5,132.48,0.05728163]
[1742726709397,256.80614854,132.51,132.48,0.05728163]
[1742726709593,26.86,132.5,132.48,0.05728163]
[1742726711493,26.86,132.5,132.48,7.60688163]
[1742726711995,26.86,132.5,132.48,0.05728163]
[1742726713094,34.4085,132.5,132.48,0.05728163]
[1742726713392,26.86,132.5,132.48,0.05728163]
[1742726713594,7.549,132.49,132.48,0.05728163]
[1742726715903,7.5506,132.47,132.42,30.8747]
[1742726716195,26.84,132.47,132.42,4.0347]
[1742726717000,0.05201685,132.46,132.43,0.04951673]
[1742726717701,7.60281685,132.46,132.43,7.60161673]
[1742726719995,249.16,132.45,132.43,0.04951673]
[1742726720193,249.16,132.45,132.35,41.11672986]
[1742726720194,26.88,132.44,132.35,41.11672986]
[1742726720402,35.1511,132.44,132.35,41.11672986]
[1742726720598,7.5551,132.39,132.35,41.11672986]
[1742726720799,26.94,132.38,132.35,41.11672986]
[1742726721300,26.99533022,132.38,132.35,41.11672986]
[1742726721904,7.5565,132.36,132.35,41.11672986]
[1742726722398,7.5565,132.36,132.35,27.55672986]
[1742726723001,7.5585,132.33,132.28,37.21918246]
[1742726723204,26.92,132.32,132.28,10.27918246]
[1742726723404,26.97772655,132.32,132.28,10.27918246]
[1742726723994,0.05772655,132.32,132.28,10.27918246]
[1742726724400,0.05772655,132.32,132.28,37.19918246]
[1742726725002,0.05772655,132.32,132.3,7.5595]
[1742726728102,0.05772655,132.32,132.31,7.5593]
[1742726728909,0.05772655,132.32,132.3,7.5597]
[1742726729409,0.05772655,132.32,132.29,7.5602]
[1742726729606,0.05772655,132.32,132.26,26.88]
[1742726729803,0.05772655,132.32,132.25,38.967]
[1742726730498,26.88,132.31,132.25,12.087]
[1742726730702,26.88,132.31,132.25,38.967]
[1742726730897,0.05191767,132.29,132.25,38.967]
[1742726731303,0.05191767,132.29,132.27,7.5612]
[1742726731505,0.05191767,132.29,132.25,12.087]
[1742726732710,0.05191767,132.29,132.28,7.561]
[1742726735112,3.65234024,132.46,132.25,12.087]
[1742726735308,10.66592313,132.47,132.35,22.67]
[1742726735512,249.4,132.7,132.37,30.227]
[1742726735808,249.4,132.7,132.6,7.5428]
[1742726736003,249.4,132.7,132.6,38.2028]
[1742726736207,131.06061793,132.61,132.6,38.2028]
[1742726736404,84.75871793,132.61,132.6,38.2028]
[1742726736710,0.05621558,132.62,132.61,7.5422]
[1742726737808,0.05621558,132.62,132.6,146.74285861]
[1742726738009,0.05621558,132.62,132.61,115.96285861]
[1742726738210,121.01621558,132.62,132.61,115.96285861]
[1742726738418,30.21,132.6,132.49,30.82]
[1742726738605,30.21,132.56,132.49,30.86]
[1742726738809,30.21,132.56,132.51,7.5474]
[1742726739008,249.24,132.57,132.51,7.5474]
[1742726739311,30.21,132.56,132.51,7.5474]
[1742726739711,0.054915,132.55,132.51,7.5474]
[1742726739911,30.264915,132.55,132.51,7.5474]